fUSD/lending_fUSD_20241106
["ID","MTS","AMOUNT","RATE_DAILY","PERIOD"]
[341411094,1730865064003,-975.81,0.00037998,14]
[341411095,1730865064013,-1451.52,0.00037998,7]
[341411096,1730865064023,-1519.12,0.00037998,14]
[341411097,1730865064032,-500.0,0.00037998,14]
[341411098,1730865064042,-1185.93,0.00037998,14]
[341411099,1730865064053,-1962.75,0.00037998,14]
[341411100,1730865064063,-855.85,0.00037998,14]
[341411101,1730865064073,-500.0,0.00037998,14]
[341411102,1730865064083,-1446.34,0.00037998,14]
[341411103,1730865064093,-220.0,0.00037999,2]
[341411104,1730865064102,-500.0,0.00037999,14]
[341411105,1730865064112,-500.0,0.00037999,14]
[341411106,1730865064122,-500.0,0.00037999,14]
[341411107,1730865064131,-500.0,0.00037999,14]
[341411108,1730865064140,-500.0,0.00037999,14]
[341411109,1730865064149,-500.0,0.00037999,14]
[341411110,1730865064159,-500.0,0.00037999,14]
[341411111,1730865064168,-500.0,0.00037999,14]
[341411112,1730865064177,-500.0,0.00037999,14]
[341411113,1730865064186,-500.0,0.00037999,14]
[341411114,1730865064195,-500.0,0.00037999,14]
[341411115,1730865064204,-500.0,0.00037999,14]
[341411116,1730865064213,-500.0,0.00037999,14]
[341411117,1730865064223,-500.0,0.00037999,14]
[341411118,1730865064232,-620.83,0.00037999,14]
[341411119,1730865064241,-488.67837564,0.00037999,14]
[341411120,1730865064250,-500.0,0.00037999,14]
[341411121,1730865064259,-508.13009993,0.00037999,14]
[341411122,1730865064269,-503.77,0.00037999,14]
[341411123,1730865064278,-500.0,0.00037999,14]
[341411124,1730865064287,-500.0,0.00037999,14]
[341411125,1730865064296,-500.0,0.00037999,14]
[341411126,1730865064306,-500.0,0.00037999,14]
[341411127,1730865064315,-500.0,0.00037999,14]
[341411128,1730865064324,-758.19,0.00037999,14]
[341411129,1730865064333,-500.0,0.00037999,14]
[341411130,1730865064343,-500.0,0.00037999,14]
[341411131,1730865064352,-500.0,0.00037999,14]
[341411132,1730865064362,-500.0,0.00037999,14]
[341411133,1730865064371,-500.0,0.00037999,14]
[341411134,1730865064380,-211.33847738,0.00037999,14]
[341411135,1730865064389,-500.0,0.00037999,14]
[341411136,1730865064399,-1616.43,0.00037999,14]
[341411137,1730865064408,-500.0,0.00037999,14]
[341411138,1730865064418,-500.0,0.00037999,14]
[341411139,1730865064427,-500.0,0.00037999,14]
[341411140,1730865064436,-500.0,0.00037999,14]
[341411141,1730865064445,-537.19838265,0.00037999,14]
[341411142,1730865064455,-500.0,0.00037999,14]
[341411143,1730865064464,-500.0,0.00037999,14]
[341411144,1730865064474,-500.0,0.00037999,14]
[341411145,1730865064487,-500.0,0.00037999,14]
[341411146,1730865064497,-552.67,0.00037999,14]
[341411147,1730865064506,-500.0,0.00037999,14]
[341411148,1730865064515,-560.74516404,0.00037999,14]
[341411149,1730865064524,-500.0,0.00037999,14]
[341411150,1730865064534,-500.0,0.00037999,14]
[341411151,1730865064543,-532.42,0.00037999,14]
[341411152,1730865064552,-500.0,0.00037999,14]
[341411153,1730865064563,-532.87937953,0.00037999,14]
[341411154,1730865064573,-500.0,0.00037999,14]
[341411155,1730865064582,-500.0,0.00037999,14]
[341411156,1730865064592,-510.2,0.00037999,14]
[341411157,1730865064603,-500.0,0.00037999,14]
[341411158,1730865064612,-500.0,0.00037999,14]
[341411159,1730865064622,-500.0,0.00037999,14]
[341411160,1730865064631,-500.0,0.00037999,14]
[341411161,1730865064641,-500.0,0.00037999,14]
[341411162,1730865064652,-500.0,0.00037999,14]
[341411163,1730865064661,-427.27078038,0.00037999,14]
[341411164,1730865064671,-500.0,0.00037999,14]
[341411165,1730865064680,-500.0,0.00037999,14]
[341411166,1730865064688,-500.0,0.00037999,14]
[341411167,1730865064698,-500.0,0.00037999,14]
[341411168,1730865064707,-500.0,0.00037999,14]
[341411169,1730865064716,-500.0,0.00037999,14]
[341411170,1730865064726,-500.0,0.00037999,14]
[341411171,1730865064736,-500.0,0.00037999,14]
[341411172,1730865064745,-370.54409108,0.00037999,14]
[341411173,1730865064754,-500.0,0.00037999,14]
[341411174,1730865064763,-500.0,0.00037999,14]
[341411175,1730865064772,-500.0,0.00037999,14]
[341411176,1730865064781,-500.0,0.00037999,14]
[341411177,1730865064790,-500.0,0.00037999,14]
[341411178,1730865064800,-500.0,0.00037999,14]
[341411179,1730865064810,-500.0,0.00037999,14]
[341411180,1730865064819,-500.0,0.00037999,14]
[341411181,1730865064829,-500.0,0.00037999,14]
[341411182,1730865064838,-500.0,0.00037999,14]
[341411183,1730865064847,-500.0,0.00037999,14]
[341411184,1730865064856,-500.0,0.00037999,14]
[341411185,1730865064866,-500.0,0.00037999,14]
[341411186,1730865064875,-500.0,0.00037999,14]
[341411187,1730865064885,-500.0,0.00037999,14]
[341411188,1730865064895,-500.0,0.00037999,14]
[341411189,1730865064904,-500.0,0.00037999,14]
[341411190,1730865064916,-500.0,0.00037999,14]
[341411191,1730865064927,-503.11285663,0.00037999,14]
[341411192,1730865064938,-500.0,0.00037999,14]
[341411193,1730865064947,-500.0,0.00037999,14]
[341411194,1730865064956,-552.79000798,0.00037999,14]
[341411195,1730865064967,-1000.0,0.00037999,10]
[341411196,1730865064978,-774.54,0.00037999,14]
[341411197,1730865064987,-708.19,0.00037999,14]
[341411198,1730865064997,-500.0,0.00037999,14]
[341411199,1730865065007,-500.0,0.00037999,14]
[341411200,1730865065016,-1135.02,0.00037999,14]
[341411201,1730865065026,-500.0,0.00037999,14]
[341411202,1730865065036,-500.0,0.00037999,14]
[341411203,1730865065045,-500.0,0.00037999,14]
[341411204,1730865065054,-500.0,0.00037999,14]
[341411205,1730865065064,-499.75106241,0.00037999,14]
[341411206,1730865065075,-500.0,0.00037999,14]
[341411207,1730865065085,-502.04408246,0.00037999,14]
[341411208,1730865065094,-602.94465204,0.00037999,14]
[341411209,1730865065103,-502.66604993,0.00037999,14]
[341411210,1730865065113,-500.0,0.00037999,14]
[341411211,1730865065122,-500.0,0.00037999,14]
[341411212,1730865065133,-500.0,0.00037999,14]
[341411213,1730865065142,-585.91,0.00037999,14]
[341411214,1730865065152,-524.63882417,0.00037999,14]
[341411215,1730865065161,-500.0,0.00037999,14]
[341411216,1730865065171,-1837.34,0.00037999,14]
[341411217,1730865065181,-761.94,0.00037999,14]
[341411218,1730865065191,-1535.63,0.00037999,14]
[341411219,1730865065200,-500.0,0.00037999,14]
[341411220,1730865065209,-500.0,0.00037999,14]
[341411221,1730865065219,-526.8290543,0.00037999,14]
[341411222,1730865065229,-500.0,0.00037999,14]
[341411223,1730865065238,-1036.09,0.00037999,14]
[341411224,1730865065248,-503.97564459,0.00037999,14]
[341411225,1730865065257,-545.07789767,0.00037999,14]
[341411226,1730865065267,-500.0,0.00037999,14]
[341411227,1730865065276,-2364.31,0.00037999,14]
[341411228,1730865065285,-500.0,0.00037999,14]
[341411229,1730865065294,-500.0,0.00037999,14]
[341411230,1730865065304,-500.0,0.00037999,14]
[341411231,1730865065313,-701.51,0.00037999,14]
[341411232,1730865065323,-1082.1,0.00037999,14]
[341411233,1730865065333,-509.92481949,0.00037999,14]
[341411234,1730865065343,-1050.66,0.00037999,14]
[341411235,1730865065352,-500.0,0.00037999,14]
[341411236,1730865065362,-722.05,0.00037999,14]
[341411237,1730865065372,-500.0,0.00037999,14]
[341411238,1730865065382,-151.0,0.00037999,7]
[341411239,1730865065391,-500.0,0.00037999,14]
[341411240,1730865065401,-151.0,0.00037999,7]
[341411241,1730865065417,-151.0,0.00037999,7]
[341411242,1730865065427,-5055.965065,0.00037999,7]
[341411243,1730865065436,-5055.965065,0.00037999,7]
[341411244,1730865065446,-198.401536,0.00037999,7]
[341411245,1730865065458,-198.401536,0.00037999,7]
[341411246,1730865065468,-151.0,0.00037999,7]
[341411247,1730865065481,-900.0,0.00038,39]
[341411248,1730865065490,-21212.34726594,0.00038,30]
[341411249,1730865065499,-487.89128421,0.00038,120]
[341411250,1730865065508,-151.0,0.00038,7]
[341411251,1730865065519,-151.0,0.00038,7]
[341411252,1730865065528,-151.0,0.00038,7]
[341411253,1730865065537,-1000.0,0.00038,7]
[341411254,1730865065548,-400.79548456,0.00038012,2]
[341411255,1730865065557,-930.86772792,0.00038065,2]
[341411256,1730865065567,-1000.0,0.00038082,2]
[341411257,1730865065577,-500.0,0.00038098,14]
[341411258,1730865065586,-500.0,0.00038098,14]
[341411259,1730865065595,-500.0,0.00038098,14]
[341411260,1730865065604,-500.0,0.00038098,14]
[341411261,1730865065613,-339.84401184,0.00038098,14]
[341411262,1730865065623,-620.83,0.00038098,14]
[341411263,1730865065632,-500.0,0.00038098,14]
[341411264,1730865065642,-1616.43,0.00038098,14]
[341411265,1730865065651,-500.0,0.00038098,14]
[341411266,1730865065661,-500.0,0.00038098,14]
[341411267,1730865065671,-500.0,0.00038098,14]
[341411268,1730865065681,-552.67,0.00038098,14]
[341411269,1730865065690,-500.0,0.00038098,14]
[341411270,1730865065699,-500.0,0.00038098,14]
[341411271,1730865065709,-1000.0,0.00038098,10]
[341411272,1730865065719,-774.54,0.00038098,14]
[341411273,1730865065730,-708.19,0.00038098,14]
[341411274,1730865065741,-1135.02,0.00038098,14]
[341411275,1730865065750,-500.0,0.00038098,14]
[341411276,1730865065761,-500.0,0.00038098,14]
[341411277,1730865065771,-1837.34,0.00038098,14]
[341411278,1730865065780,-1535.63,0.00038098,14]
[341411279,1730865065790,-1036.09,0.00038098,14]
[341411280,1730865065800,-2364.31,0.00038098,14]
[341411281,1730865065809,-701.51,0.00038098,14]
[341411282,1730865065819,-1082.1,0.00038098,14]
[341411283,1730865065828,-1050.66,0.00038098,14]
[341411284,1730865065838,-547.01687426,0.00038098,14]
[341411285,1730865065847,-722.05,0.00038098,14]
[341411286,1730865065857,-508.49,0.00038099,14]
[341411287,1730865065866,-500.0,0.00038099,14]
[341411288,1730865065876,-500.0,0.00038099,14]
[341411289,1730865065885,-1490.01,0.00038099,14]
[341411290,1730865065894,-500.0,0.00038099,14]
[341411291,1730865065904,-500.0,0.00038099,14]
[341411292,1730865065926,-500.0,0.00038099,14]
[341411293,1730865065936,-600.51,0.00038099,14]
[341411294,1730865065946,-500.0,0.00038099,14]
[341411295,1730865065955,-500.0,0.00038099,14]
[341411296,1730865065966,-500.0,0.00038099,14]
[341411297,1730865065975,-500.0,0.00038099,14]
[341411298,1730865065985,-2424.64,0.00038099,14]
[341411299,1730865065995,-500.0,0.00038099,14]
[341411300,1730865066004,-556.08170785,0.00038099,14]
[341411301,1730865066014,-500.0,0.00038099,14]
[341411302,1730865066023,-500.0,0.00038099,14]
[341411303,1730865066033,-500.0,0.0003818,14]
[341411304,1730865066042,-500.0,0.0003818,14]
[341411305,1730865066052,-400.79548459,0.00038181,2]
[341411306,1730865066061,-500.0,0.00038196,14]
[341411307,1730865066071,-500.0,0.00038196,14]
[341411308,1730865066081,-552.67,0.00038196,14]
[341411309,1730865066091,-500.0,0.00038196,14]
[341411310,1730865066101,-1000.0,0.00038196,10]
[341411311,1730865066111,-774.54,0.00038196,14]
[341411312,1730865066121,-708.19,0.00038196,14]
[341411313,1730865066132,-1135.02,0.00038196,14]
[341411314,1730865066143,-500.0,0.00038196,14]
[341411315,1730865066152,-500.0,0.00038196,14]
[341411316,1730865066163,-1837.34,0.00038196,14]
[341411317,1730865066174,-1535.63,0.00038196,14]
[341411318,1730865066184,-1036.09,0.00038196,14]
[341411319,1730865066193,-2364.31,0.00038196,14]
[341411320,1730865066202,-701.51,0.00038196,14]
[341411321,1730865066211,-1082.1,0.00038196,14]
[341411322,1730865066220,-1050.66,0.00038196,14]
[341411323,1730865066230,-722.05,0.00038196,14]
[341411324,1730865066240,-500.0,0.00038196,14]
[341411325,1730865066249,-500.0,0.00038196,14]
[341411326,1730865066258,-500.0,0.00038196,14]
[341411327,1730865066268,-500.0,0.00038196,14]
[341411328,1730865066278,-670.7,0.00038196,14]
[341411329,1730865066288,-512.42,0.00038196,14]
[341411330,1730865066297,-500.0,0.00038196,14]
[341411331,1730865066306,-500.0,0.00038197,14]
[341411332,1730865066316,-500.0,0.00038197,14]
[341411333,1730865066326,-500.0,0.00038197,14]
[341411334,1730865066335,-634.99908257,0.00038197,14]
[341411335,1730865066345,-500.0,0.00038197,14]
[341411336,1730865066355,-500.0,0.00038197,14]
[341411337,1730865066364,-500.0,0.00038197,14]
[341411338,1730865066373,-500.0,0.00038197,14]
[341411339,1730865066384,-500.0,0.00038197,14]
[341411340,1730865066393,-500.0,0.00038197,14]
[341411341,1730865066402,-575.49725459,0.00038197,14]
[341411342,1730865066422,-500.0,0.00038197,14]
[341411343,1730865066431,-500.0,0.00038197,14]
[341411344,1730865066441,-500.0,0.00038197,14]
[341411345,1730865066455,-500.0,0.00038197,14]
[341411346,1730865066466,-500.0,0.00038197,14]
[341411347,1730865066482,-500.0,0.00038197,14]
[341411348,1730865066492,-500.0,0.00038197,14]
[341411349,1730865066502,-620.83,0.00038197,14]
[341411350,1730865066513,-620.83,0.00038197,14]
[341411351,1730865066523,-500.0,0.00038197,14]
[341411352,1730865066533,-503.77,0.00038197,14]
[341411353,1730865066543,-500.0,0.00038197,14]
[341411354,1730865066553,-500.0,0.00038197,14]
[341411355,1730865066563,-500.0,0.00038197,14]
[341411356,1730865066573,-500.0,0.00038197,14]
[341411357,1730865066582,-500.0,0.00038197,14]
[341411358,1730865066591,-500.0,0.00038197,14]
[341411359,1730865066601,-758.19,0.00038197,14]
[341411360,1730865066612,-500.0,0.00038197,14]
[341411361,1730865066621,-500.0,0.00038197,14]
[341411362,1730865066630,-500.0,0.00038197,14]
[341411363,1730865066640,-165.36,0.00038197,14]
[341411364,1730865066650,-500.0,0.00038197,14]
[341411365,1730865066668,-500.0,0.00038197,14]
[341411366,1730865066678,-1616.43,0.00038197,14]
[341411367,1730865066688,-1616.43,0.00038197,14]
[341411368,1730865066698,-500.0,0.00038197,14]
[341411369,1730865066709,-500.0,0.00038197,14]
[341411370,1730865066719,-500.0,0.00038197,14]
[341411371,1730865066729,-500.0,0.00038197,14]
[341411372,1730865066738,-500.0,0.00038197,14]
[341411373,1730865066748,-500.0,0.00038197,14]
[341411374,1730865066757,-500.0,0.00038197,14]
[341411375,1730865066768,-564.82439741,0.00038197,14]
[341411376,1730865066777,-548.05298911,0.00038197,14]
[341411377,1730865066787,-552.67,0.00038197,14]
[341411378,1730865066796,-552.67,0.00038197,14]
[341411379,1730865066806,-500.0,0.00038197,14]
[341411380,1730865066815,-500.0,0.00038197,14]
[341411381,1730865066825,-500.0,0.00038197,14]
[341411382,1730865066836,-500.0,0.00038197,14]
[341411383,1730865066846,-532.42,0.00038197,14]
[341411384,1730865066856,-500.0,0.00038197,14]
[341411385,1730865066866,-500.0,0.00038197,14]
[341411386,1730865066875,-510.2,0.00038197,14]
[341411387,1730865066886,-500.0,0.00038197,14]
[341411388,1730865066897,-500.0,0.00038197,14]
[341411389,1730865066907,-500.0,0.00038197,14]
[341411390,1730865066928,-500.0,0.00038197,14]
[341411391,1730865066937,-500.0,0.00038197,14]
[341411392,1730865066947,-500.0,0.00038197,14]
[341411393,1730865066958,-500.0,0.00038197,14]
[341411394,1730865066968,-500.0,0.00038197,14]
[341411395,1730865066977,-500.0,0.00038197,14]
[341411396,1730865066987,-478.92533063,0.00038197,14]
[341411397,1730865066996,-500.0,0.00038197,14]
[341411398,1730865067006,-500.0,0.00038197,14]
[341411399,1730865067016,-530.04648707,0.00038197,14]
[341411400,1730865067026,-500.0,0.00038197,14]
[341411401,1730865067035,-500.0,0.00038197,14]
[341411402,1730865067045,-500.0,0.00038197,14]
[341411403,1730865067055,-500.0,0.00038197,14]
[341411404,1730865067065,-579.79320558,0.00038197,14]
[341411405,1730865067074,-500.0,0.00038197,14]
[341411406,1730865067084,-500.0,0.00038197,14]
[341411407,1730865067094,-500.0,0.00038197,14]
[341411408,1730865067103,-500.0,0.00038197,14]
[341411409,1730865067113,-500.0,0.00038197,14]
[341411410,1730865067122,-500.0,0.00038197,14]
[341411411,1730865067132,-500.0,0.00038197,14]
[341411412,1730865067142,-500.0,0.00038197,14]
[341411413,1730865067152,-500.0,0.00038197,14]
[341411414,1730865067171,-500.0,0.00038197,14]
[341411415,1730865067182,-500.0,0.00038197,14]
[341411416,1730865067195,-500.0,0.00038197,14]
[341411417,1730865067204,-500.0,0.00038197,14]
[341411418,1730865067213,-500.0,0.00038197,14]
[341411419,1730865067223,-500.0,0.00038197,14]
[341411420,1730865067233,-500.0,0.00038197,14]
[341411421,1730865067242,-500.0,0.00038197,14]
[341411422,1730865067251,-1000.0,0.00038197,10]
[341411423,1730865067260,-1000.0,0.00038197,10]
[341411424,1730865067270,-774.54,0.00038197,14]
[341411425,1730865067279,-774.54,0.00038197,14]
[341411426,1730865067289,-708.19,0.00038197,14]
[341411427,1730865067298,-708.19,0.00038197,14]
[341411428,1730865067307,-500.0,0.00038197,14]
[341411429,1730865067317,-500.0,0.00038197,14]
[341411430,1730865067327,-1135.02,0.00038197,14]
[341411431,1730865067337,-1135.02,0.00038197,14]
[341411432,1730865067348,-500.0,0.00038197,14]
[341411433,1730865067358,-588.5074487,0.00038197,14]
[341411434,1730865067368,-500.0,0.00038197,14]
[341411435,1730865067378,-500.0,0.00038197,14]
[341411436,1730865067388,-500.0,0.00038197,14]
[341411437,1730865067399,-524.47240322,0.00038197,14]
[341411438,1730865067416,-500.0,0.00038197,14]
[341411439,1730865067426,-500.0,0.00038197,14]
[341411440,1730865067435,-515.08732922,0.00038197,14]
[341411441,1730865067445,-500.0,0.00038197,14]
[341411442,1730865067455,-585.91,0.00038197,14]
[341411443,1730865067464,-529.86534235,0.00038197,14]
[341411444,1730865067474,-1837.34,0.00038197,14]
[341411445,1730865067486,-1837.34,0.00038197,14]
[341411446,1730865067495,-761.94,0.00038197,14]
[341411447,1730865067504,-1535.63,0.00038197,14]
[341411448,1730865067513,-1535.63,0.00038197,14]
[341411449,1730865067523,-500.0,0.00038197,14]
[341411450,1730865067533,-533.08659693,0.00038197,14]
[341411451,1730865067542,-500.0,0.00038197,14]
[341411452,1730865067555,-1036.09,0.00038197,14]
[341411453,1730865067566,-1036.09,0.00038197,14]
[341411454,1730865067576,-2364.31,0.00038197,14]
[341411455,1730865067586,-2364.31,0.00038197,14]
[341411456,1730865067598,-500.0,0.00038197,14]
[341411457,1730865067611,-500.0,0.00038197,14]
[341411458,1730865067623,-151.0,0.00038197,7]
[341411459,1730865067633,-500.0,0.00038197,14]
[341411460,1730865067643,-701.51,0.00038197,14]
[341411461,1730865067655,-701.51,0.00038197,14]
[341411462,1730865067670,-151.0,0.00038197,7]
[341411463,1730865067680,-151.0,0.00038197,7]
[341411464,1730865067689,-151.0,0.00038197,7]
[341411465,1730865067699,-151.0,0.00038197,7]
[341411466,1730865067708,-1082.1,0.00038197,14]
[341411467,1730865067718,-1082.1,0.00038197,14]
[341411468,1730865067727,-151.0,0.00038197,7]
[341411469,1730865067737,-1050.66,0.00038197,14]
[341411470,1730865067746,-1050.66,0.00038197,14]
[341411471,1730865067756,-722.05,0.00038197,14]
[341411472,1730865067766,-722.05,0.00038197,14]
[341411473,1730865067776,-154.219014,0.00038197,7]
[341411474,1730865067786,-508.49,0.00038198,14]
[341411475,1730865067796,-500.0,0.00038198,14]
[341411476,1730865067805,-1490.01,0.00038198,14]
[341411477,1730865067815,-500.0,0.00038198,14]
[341411478,1730865067825,-500.0,0.00038198,14]
[341411479,1730865067835,-342.880722,0.00038198,14]
[341411480,1730865067844,-600.51,0.00038198,14]
[341411481,1730865067854,-500.0,0.00038198,14]
[341411482,1730865067864,-500.0,0.00038198,14]
[341411483,1730865067874,-500.0,0.00038198,14]
[341411484,1730865067883,-500.0,0.00038198,14]
[341411485,1730865067893,-2424.64,0.00038198,14]
[341411486,1730865067903,-500.0,0.00038198,14]
[341411487,1730865067917,-500.0,0.000382,14]
[341411488,1730865067928,-552.67,0.000382,14]
[341411489,1730865067938,-1000.0,0.000382,10]
[341411490,1730865067948,-774.54,0.000382,14]
[341411491,1730865067958,-708.19,0.000382,14]
[341411492,1730865067967,-153.55,0.000382,31]
[341411493,1730865067977,-153.55,0.000382,31]
[341411494,1730865067986,-153.55,0.000382,31]
[341411495,1730865067996,-153.55,0.000382,31]
[341411496,1730865068006,-153.55,0.000382,31]
[341411497,1730865068016,-153.55,0.000382,31]
[341411498,1730865068025,-153.55,0.000382,31]
[341411499,1730865068035,-153.55,0.000382,31]
[341411500,1730865068046,-153.55,0.000382,31]
[341411501,1730865068056,-1135.02,0.000382,14]
[341411502,1730865068066,-500.0,0.000382,14]
[341411503,1730865068076,-500.0,0.000382,14]
[341411504,1730865068086,-1837.34,0.000382,14]
[341411505,1730865068096,-1535.63,0.000382,14]
[341411506,1730865068106,-1036.09,0.000382,14]
[341411507,1730865068115,-2364.31,0.000382,14]
[341411508,1730865068125,-701.51,0.000382,14]
[341411509,1730865068135,-1082.1,0.000382,14]
[341411510,1730865068144,-1050.66,0.000382,14]
[341411511,1730865068155,-722.05,0.000382,14]
[341411512,1730865068167,-162.971903,0.000382,7]
[341411513,1730865068177,-151.0,0.000382,7]
[341411514,1730865068187,-396.113075,0.000382,7]
[341411515,1730865068197,-396.113075,0.000382,7]
[341411516,1730865068207,-151.0,0.000382,7]
[341411517,1730865068217,-151.0,0.000382,7]
[341411518,1730865068227,-402.187984,0.000382,7]
[341411519,1730865068236,-402.187984,0.000382,7]
[341411520,1730865068246,-1022.939356,0.000382,7]
[341411521,1730865068256,-1022.939356,0.000382,7]
[341411522,1730865068265,-151.0,0.000382,7]
[341411523,1730865068276,-152.107693,0.000382,7]
[341411524,1730865068285,-160.976341,0.000382,7]
[341411525,1730865068295,-160.976341,0.000382,7]
[341411526,1730865068305,-151.0,0.000382,7]
[341411527,1730865068315,-508.49,0.00038201,14]
[341411528,1730865068325,-500.0,0.00038201,14]
[341411529,1730865068335,-1490.01,0.00038201,14]
[341411530,1730865068345,-500.0,0.00038201,14]
[341411531,1730865068354,-500.0,0.00038201,14]
[341411532,1730865068364,-600.51,0.00038201,14]
[341411533,1730865068373,-500.0,0.00038201,14]
[341411534,1730865068382,-500.0,0.00038201,14]
[341411535,1730865068393,-500.0,0.00038201,14]
[341411536,1730865068402,-500.0,0.00038201,14]
[341411537,1730865068414,-2424.64,0.00038201,14]
[341411538,1730865068423,-500.0,0.00038201,14]
[341411539,1730865068433,-500.0,0.00038253,14]
[341411540,1730865068445,-552.67,0.00038253,14]
[341411541,1730865068455,-500.0,0.00038253,14]
[341411542,1730865068466,-500.0,0.00038253,14]
[341411543,1730865068477,-1470.86,0.00038253,14]
[341411544,1730865068489,-500.0,0.00038253,14]
[341411545,1730865068498,-500.0,0.00038253,14]
[341411546,1730865068507,-500.0,0.00038253,14]
[341411547,1730865068518,-1154.4,0.00038253,14]
[341411548,1730865068528,-500.0,0.00038253,14]
[341411549,1730865068537,-500.0,0.00038253,14]
[341411550,1730865068548,-926.87,0.00038253,14]
[341411551,1730865068558,-500.0,0.00038253,14]
[341411552,1730865068567,-928.79,0.00038253,14]
[341411553,1730865068578,-500.0,0.00038253,14]
[341411554,1730865068587,-500.0,0.00038253,14]
[341411555,1730865068597,-2011.69,0.00038253,14]
[341411556,1730865068607,-1541.48,0.00038253,14]
[341411557,1730865068616,-500.0,0.00038253,14]
[341411558,1730865068626,-500.0,0.00038253,14]
[341411559,1730865068635,-3498.61,0.00038253,14]
[341411560,1730865068849,-167.03,0.00038253,14]
[341411561,1730865068864,-689.85,0.00038253,14]
[341411562,1730865068874,-1107.13,0.00038253,14]
[341411563,1730865068884,-500.0,0.00038253,14]
[341411564,1730865068894,-557.71,0.00038253,14]
[341411565,1730865068903,-500.0,0.00038253,14]
[341411566,1730865068919,-1447.7,0.00038253,14]
[341411567,1730865068928,-710.13,0.00038253,14]
[341411568,1730865068938,-1302.5,0.00038253,14]
[341411569,1730865068949,-675.3,0.00038253,14]
[341411570,1730865068960,-500.0,0.00038253,14]
[341411571,1730865068969,-500.0,0.00038253,14]
[341411572,1730865068978,-986.6,0.00038253,14]
[341411573,1730865068987,-1841.68,0.00038253,14]
[341411574,1730865068998,-1534.99,0.00038253,14]
[341411575,1730865069007,-151.528371,0.00038253,14]
[341411576,1730865069017,-154.296734,0.00038253,14]
[341411577,1730865069027,-203.783196,0.00038253,14]
[341411578,1730865069036,-152.709931,0.00038253,14]
[341411579,1730865069047,-1449.59,0.00038253,14]
[341411580,1730865069056,-975.81,0.00038253,14]
[341411581,1730865069066,-1451.52,0.00038253,7]
[341411582,1730865069075,-1519.12,0.00038253,14]
[341411583,1730865069085,-500.0,0.00038253,14]
[341411584,1730865069094,-500.0,0.00038253,14]
[341411585,1730865069104,-1185.93,0.00038253,14]
[341411586,1730865069113,-500.0,0.00038253,14]
[341411587,1730865069123,-1962.75,0.00038253,14]
[341411588,1730865069133,-855.85,0.00038253,14]
[341411589,1730865069143,-500.0,0.00038253,14]
[341411590,1730865069153,-500.0,0.00038253,14]
[341411591,1730865069165,-275.41261302,0.00038253,14]
[341411592,1730865069174,-190.740332,0.00038253,7]
[341411593,1730865069184,-670.7,0.00038253,14]